bitfinex/quotes_BTCUSD_20250526
["timestamp","ask_amount","ask_price","bid_price","bid_amount"]
[1748217852628,0.01218627,108850.0,108840.0,0.65033707]
[1748217852832,0.02137263,108850.0,108840.0,0.65033707]
[1748217853288,0.003,108850.0,108840.0,0.73988263]
[1748217854550,0.002,108850.0,108840.0,0.73988263]
[1748217854779,0.02855679,108860.0,108850.0,0.49910329]
[1748217855205,0.21227985,108860.0,108850.0,0.45943032]
[1748217855410,0.20309417,108860.0,108850.0,0.4594304]
[1748217855610,0.20309417,108860.0,108850.0,0.47780405]
[1748217855748,0.20309417,108860.0,108850.0,0.49617736]
[1748217855955,0.20509417,108860.0,108850.0,0.47780405]
[1748217856158,0.20509417,108860.0,108850.0,0.48699075]
[1748217856406,0.20509417,108860.0,108850.0,0.49617736]
[1748217856580,0.20509417,108860.0,108850.0,0.48699075]
[1748217857190,0.20609417,108860.0,108850.0,0.49617736]
[1748217857953,0.20609417,108860.0,108850.0,0.49617685]
[1748217858151,0.21528028,108860.0,108850.0,0.48699041]
[1748217858344,0.21528028,108860.0,108850.0,0.49617694]
[1748217859326,0.21528028,108860.0,108850.0,0.48699041]
[1748217859540,0.19292587,108850.0,108840.0,0.04414703]
[1748217859749,0.23752587,108850.0,108840.0,0.04414703]
[1748217859958,0.20211257,108850.0,108840.0,0.5127756]
[1748217860174,0.20211257,108850.0,108840.0,0.50358823]
[1748217860385,0.20211257,108850.0,108840.0,0.47604423]
[1748217861023,0.20211257,108850.0,108840.0,0.49441923]
[1748217861226,0.01837348,108850.0,108840.0,0.50360643]
[1748217861430,0.001,108850.0,108840.0,0.52670643]
[1748217861630,0.01937255,108850.0,108840.0,0.52670643]
[1748217861855,0.01018619,108850.0,108840.0,0.61625199]
[1748217862414,0.001,108850.0,108840.0,0.61625199]
[1748217863586,0.01937297,108850.0,108840.0,0.61625199]
[1748217863787,0.01937289,108850.0,108840.0,0.61625199]
[1748217863988,0.01018636,108850.0,108840.0,0.61625199]
[1748217864194,0.01018627,108850.0,108840.0,0.59315199]
[1748217864392,0.01937263,108850.0,108840.0,0.59315199]
[1748217864545,0.02855916,108850.0,108840.0,0.59315199]
[1748217864732,0.01937263,108850.0,108840.0,0.59315199]
[1748217865301,0.02855916,108850.0,108840.0,0.59315199]
[1748217866939,0.03774586,108850.0,108840.0,0.59315199]
[1748217867123,0.03774577,108850.0,108840.0,0.59315199]
[1748217868917,0.22148546,108850.0,108840.0,0.46685661]
[1748217869121,0.2122991,108850.0,108840.0,0.63203211]
[1748217869370,0.19392596,108850.0,108840.0,0.50340303]
[1748217869784,0.19392596,108850.0,108840.0,0.6228444]
[1748217869960,0.19392596,108850.0,108840.0,0.63203211]
[1748217870200,0.19392596,108850.0,108840.0,0.64121973]
[1748217870402,0.24022596,108850.0,108840.0,0.38414503]
[1748217870617,0.24022596,108850.0,108840.0,0.367542]
[1748217870824,0.32977152,108850.0,108840.0,0.367542]
[1748217871236,0.32977152,108850.0,108840.0,0.34]
[1748217872094,0.33836003,108850.0,108840.0,0.34]
[1748217872634,0.33836003,108850.0,108830.0,0.01671391]
[1748217872635,0.24514954,108830.0,108820.0,0.02959785]
[1748217872830,0.24514954,108830.0,108820.0,0.34204985]
[1748217873273,0.3346951,108830.0,108820.0,0.00204985]
[1748217873902,0.3356951,108830.0,108820.0,0.00204985]
[1748217886246,0.3346951,108830.0,108820.0,0.00204985]
[1748217886447,0.3376951,108830.0,108820.0,0.00204985]
[1748217886658,0.3406951,108830.0,108820.0,0.00204985]
[1748217893813,0.34925945,108830.0,108820.0,0.00204985]
[1748217900325,0.34696218,108830.0,108820.0,0.00204985]
[1748217902019,0.50256136,108830.0,108820.0,0.00204985]
[1748217904494,0.31272136,108830.0,108820.0,0.34204985]
[1748217904711,0.23236376,108830.0,108820.0,0.50149171]
[1748217904894,0.22317613,108830.0,108820.0,0.36364985]
[1748217905108,0.20522848,108830.0,108820.0,0.36364985]
[1748217906469,0.20522848,108830.0,108820.0,0.39120085]
[1748217907284,0.21441678,108830.0,108820.0,0.52247469]
[1748217907476,0.21441712,108830.0,108820.0,0.41220085]
[1748217908039,0.21441712,108830.0,108820.0,0.53166409]
[1748217908241,0.21441712,108830.0,108820.0,0.41220085]
[1748217908865,0.21441712,108830.0,108820.0,0.53166409]
[1748217909074,0.22590159,108830.0,108820.0,0.55004212]
[1748217909296,0.22590159,108830.0,108820.0,0.69688212]
[1748217909595,0.04212866,108830.0,108820.0,0.69688212]
[1748217909797,0.03356431,108830.0,108820.0,0.69688212]
[1748217909992,0.03356406,108830.0,108820.0,0.55004212]
[1748217910425,0.03356397,108830.0,108820.0,0.55004212]
[1748217910631,0.01518788,108830.0,108820.0,0.55004212]
[1748217910835,0.02437593,108830.0,108820.0,0.55004212]
[1748217911458,0.01518788,108830.0,108820.0,0.55004212]
[1748217911715,0.02437593,108830.0,108820.0,0.55004212]
[1748217911919,0.03356415,108830.0,108820.0,0.55004212]
[1748217912336,0.03356423,108830.0,108820.0,0.55004212]
[1748217912717,0.02437593,108830.0,108820.0,0.55004212]
[1748217913240,0.03356415,108830.0,108820.0,0.55004212]
[1748217913516,0.03356406,108830.0,108820.0,0.55004212]
[1748217913720,0.02437593,108830.0,108820.0,0.55004212]
[1748217913903,0.01518788,108830.0,108820.0,0.55004212]
[1748217914101,0.02437593,108830.0,108820.0,0.55004212]
[1748217914674,0.20814878,108830.0,108820.0,0.55004212]
[1748217914878,0.22652529,108830.0,108820.0,0.70607127]
[1748217915310,0.22652529,108830.0,108820.0,0.69688229]
[1748217915531,0.22652529,108830.0,108820.0,0.70607127]
[1748217915732,0.22652521,108830.0,108820.0,0.70607127]
[1748217916413,0.23571376,108830.0,108820.0,0.6876934]
[1748217916586,0.23571359,108830.0,108820.0,0.69688254]
[1748217917089,0.22652571,108830.0,108820.0,0.70607177]
[1748217917430,0.23571426,108830.0,108820.0,0.6876934]
[1748217917662,0.22652571,108830.0,108820.0,0.69688263]
[1748217917790,0.22652571,108830.0,108820.0,0.70607177]
[1748217918311,0.22652613,108830.0,108820.0,0.67850409]
[1748217918523,0.22652613,108830.0,108820.0,0.69688246]
[1748217919668,0.22652613,108830.0,108820.0,0.68769332]
[1748217919795,0.22652613,108830.0,108820.0,0.6876934]
[1748217920000,0.22652613,108830.0,108820.0,0.69688263]
[1748217920374,0.21733766,108830.0,108820.0,0.70607177]
[1748217921794,0.006,108830.0,108820.0,0.71526066]
[1748217921928,0.20814886,108830.0,108820.0,0.71526066]
[1748217922268,0.20814878,108830.0,108820.0,0.71526066]
[1748217922515,0.22652529,108830.0,108820.0,0.71526083]
[1748217923223,0.006,108830.0,108820.0,0.71526032]
[1748217923496,0.01518813,108830.0,108820.0,0.71526032]
[1748217924010,0.20814894,108830.0,108820.0,0.71526032]
[1748217924377,0.21733724,108830.0,108820.0,0.71526032]
[1748217924578,0.20814894,108830.0,108820.0,0.71526032]
[1748217924780,0.21733724,108830.0,108820.0,0.71526041]
[1748217925124,0.22652579,108830.0,108820.0,0.68769323]
[1748217925272,0.21733783,108830.0,108820.0,0.52563033]
[1748217925475,0.21733783,108830.0,108820.0,0.64509357]
[1748217925680,0.21733783,108830.0,108820.0,0.65428288]
[1748217926116,0.21733783,108830.0,108820.0,0.66347211]
[1748217927277,0.2081497,108830.0,108820.0,0.36960085]
[1748217927501,0.34029526,108830.0,108820.0,0.00204985]
[1748217927680,0.28850637,108830.0,108820.0,0.45232369]
[1748217927883,0.21733834,108830.0,108820.0,0.34204985]
[1748217928087,0.006,108830.0,108820.0,0.51018043]
[1748217928428,0.21733716,108830.0,108820.0,0.66620941]
[1748217928579,0.21733716,108830.0,108820.0,0.65702052]
[1748217928754,0.22652554,108830.0,108820.0,0.65702052]
[1748217928952,0.22652554,108830.0,108820.0,0.64783154]
[1748217929162,0.006,108830.0,108820.0,0.67902043]
[1748217929365,0.01518805,108830.0,108820.0,0.67902043]
[1748217929942,0.006,108830.0,108820.0,0.67902043]
[1748217930060,0.01518796,108830.0,108820.0,0.67902043]
[1748217931876,0.006,108830.0,108820.0,0.76856599]
[1748217933080,0.006,108830.0,108820.0,0.94068599]
[1748217933204,0.003,108830.0,108820.0,0.94068599]
[1748217933404,0.03674602,108850.0,108840.0,0.13781595]
[1748217933669,0.04532963,108850.0,108840.0,0.4801126]
[1748217933867,0.03614293,108850.0,108840.0,0.62461595]
[1748217934068,0.04532963,108850.0,108840.0,0.64671595]
[1748217934496,0.03674594,108850.0,108840.0,0.64671595]
[1748217934643,0.04074594,108850.0,108840.0,0.64671595]
[1748217935431,0.01318627,108850.0,108840.0,0.64671595]
[1748217935567,0.02737271,108850.0,108840.0,0.64771595]
[1748217935766,0.03655932,108850.0,108840.0,0.41539889]
[1748217935964,0.03655932,108850.0,108840.0,0.52565247]
[1748217936526,0.0457461,108850.0,108840.0,0.5440278]
[1748217936735,0.04574602,108850.0,108840.0,0.5440278]
[1748217937110,0.04574602,108850.0,108840.0,0.53484018]
[1748217937311,0.04574602,108850.0,108840.0,0.51274018]
[1748217937632,0.22948511,108850.0,108840.0,0.51274018]
[1748217937937,0.24725649,108850.0,108840.0,0.50355247]
[1748217938199,0.24725649,108850.0,108840.0,0.51274026]
[1748217938681,0.24725649,108850.0,108840.0,0.54028326]
[1748217938845,0.24725649,108850.0,108840.0,0.43002968]
[1748217939066,0.23807022,108850.0,108840.0,0.43002968]
[1748217939292,0.23807022,108850.0,108840.0,0.42084189]
[1748217939493,0.22888378,108850.0,108840.0,0.42084189]
[1748217940558,0.22029927,108850.0,108840.0,0.42084189]
[1748217940752,0.21111266,108850.0,108840.0,0.42084189]
[1748217940958,0.23111266,108850.0,108840.0,0.42084189]
[1748217944226,0.22192596,108850.0,108840.0,0.42084189]
[1748217944429,0.24352596,108850.0,108840.0,0.028543]
[1748217944663,0.33307152,108850.0,108840.0,0.341]
[1748217945724,0.34165354,108850.0,108840.0,0.341]
[1748217947989,0.21504359,108840.0,108830.0,0.514347]
[1748217948206,0.21504359,108840.0,108830.0,0.174347]
[1748217948207,0.23674359,108840.0,108830.0,0.174347]
[1748217948420,0.23674359,108840.0,108830.0,0.1468]
[1748217948800,0.18377285,108830.0,108820.0,0.30504848]
[1748217949103,0.20214886,108830.0,108820.0,0.30504848]
[1748217949323,0.20214886,108830.0,108820.0,0.31423754]
[1748217949570,0.21133716,108830.0,108820.0,0.29585934]
[1748217949987,0.21133716,108830.0,108820.0,0.63585934]
[1748217950202,0.21233716,108830.0,108820.0,0.63585934]
[1748217950856,0.21233716,108830.0,108820.0,0.64504848]
[1748217951070,0.21433716,108830.0,108820.0,0.63585934]
[1748217951674,0.21433716,108830.0,108820.0,0.64504848]
[1748217952037,0.21433716,108830.0,108820.0,0.63585934]
[1748217952230,0.21433716,108830.0,108820.0,0.64504848]
[1748217952764,0.003,108830.0,108820.0,0.67593737]
[1748217952937,0.19252173,108830.0,108820.0,0.67593754]
[1748217953083,0.20170995,108830.0,108820.0,0.67593754]
[1748217954294,0.21089833,108830.0,108820.0,0.62082311]
[1748217954507,0.20170995,108830.0,108820.0,0.62082311]
[1748217954712,0.21089833,108830.0,108820.0,0.63001234]
[1748217954895,0.20170995,108830.0,108820.0,0.63001234]
[1748217955312,0.20170995,108830.0,108820.0,0.63920148]
[1748217957408,0.21089833,108830.0,108820.0,0.63920148]
[1748217958375,0.21089833,108830.0,108820.0,0.63001234]
[1748217958556,0.22423138,108840.0,108820.0,0.63920097]
[1748217958868,0.19296081,108830.0,108820.0,0.64838978]
[1748217959269,0.00918703,108840.0,108830.0,0.12863912]
[1748217959414,0.20211206,108850.0,108840.0,0.34]
[1748217959819,0.1929257,108850.0,108840.0,0.34]
[1748217960018,0.2234125,108850.0,108840.0,0.34]
[1748217960475,0.2015125,108850.0,108840.0,0.34]
[1748217960724,0.21069945,108850.0,108840.0,0.34]
[1748217960921,0.21069886,108850.0,108840.0,0.58786569]
[1748217961123,0.23307234,108850.0,108840.0,0.4878]
[1748217961459,0.23707234,108850.0,108840.0,0.4878]
[1748217961688,0.22788598,108850.0,108840.0,0.4878]
[1748217961868,0.26249937,108850.0,108840.0,0.4878]
[1748217963093,0.24412589,108850.0,108840.0,0.4878]
[1748217965005,0.24412589,108850.0,108840.0,0.341]
[1748217966652,0.33367145,108850.0,108840.0,0.341]
[1748217973409,0.2407992,108850.0,108840.0,0.341]
[1748217973587,0.24998607,108850.0,108840.0,0.341]
[1748217973791,0.24998607,108850.0,108840.0,0.368544]
[1748217974194,0.27218607,108850.0,108840.0,0.368544]
[1748217975572,0.26299954,108850.0,108840.0,0.368544]
[1748217977312,0.25381276,108850.0,108840.0,0.368544]
[1748217982431,0.34335832,108850.0,108840.0,0.341]
[1748217986659,0.22788632,108850.0,108840.0,0.44206577]
[1748217987052,0.20951225,108850.0,108840.0,0.44206577]
[1748217987424,0.22788556,108850.0,108840.0,0.49162864]
[1748217987598,0.23707251,108850.0,108840.0,0.49162864]
[1748217987824,0.22788548,108850.0,108840.0,0.52836001]
[1748217988217,0.23707243,108850.0,108840.0,0.16079748]
[1748217988421,0.22788548,108850.0,108840.0,0.16998494]
[1748217988922,0.23707235,108850.0,108840.0,0.16998494]
[1748217989324,0.23707235,108850.0,108840.0,0.1699851]
[1748217989532,0.23707235,108850.0,108840.0,0.16079748]
[1748217989732,0.23707235,108850.0,108840.0,0.05973179]
[1748217989896,0.23707235,108850.0,108840.0,0.16998502]
[1748217990295,0.23707235,108850.0,108840.0,0.15160977]
[1748217990498,0.23707235,108850.0,108840.0,0.16079748]
[1748217990692,0.22788599,108850.0,108840.0,0.050544]
[1748217990910,0.22788599,108850.0,108840.0,0.03773179]
[1748217991260,0.22788599,108850.0,108840.0,0.028544]
[1748217991552,0.22788599,108850.0,108840.0,0.0469195]
[1748217991709,0.23707294,108850.0,108840.0,0.03773179]
[1748217992410,0.23707294,108850.0,108840.0,0.16169739]
[1748217992666,0.23707294,108850.0,108840.0,0.15250977]
[1748217992860,0.23707294,108850.0,108840.0,0.16169748]
[1748217993113,0.21869912,108850.0,108840.0,0.17088502]
[1748217993299,0.22788607,108850.0,108840.0,0.16399412]
[1748217993503,0.22788607,108850.0,108840.0,0.17318174]
[1748217993703,0.23707217,108850.0,108840.0,0.15480641]
[1748217994022,0.23707217,108850.0,108840.0,0.16399412]
[1748217994669,0.23707217,108850.0,108840.0,0.06292843]
[1748217994838,0.23707217,108850.0,108840.0,0.07211614]
[1748217995060,0.23707217,108850.0,108840.0,0.16399412]
[1748217995850,0.2278859,108850.0,108840.0,0.05374064]
[1748217996020,0.2278859,108850.0,108840.0,0.06292843]
[1748217996346,0.21869937,108850.0,108840.0,0.05374064]
[1748217996569,0.21869937,108850.0,108840.0,0.04002843]
[1748217997761,0.21869937,108850.0,108840.0,0.03773179]
[1748217998650,0.21869937,108850.0,108840.0,0.028544]
[1748217998823,0.21869937,108850.0,108840.0,0.03773179]
[1748217999147,0.21869937,108850.0,108840.0,0.028544]
[1748217999274,0.21869937,108850.0,108840.0,0.03773179]
[1748218000179,0.21869937,108850.0,108840.0,0.028544]
[1748218000381,0.20951276,108850.0,108840.0,0.028544]
[1748218000591,0.24282589,108850.0,108840.0,0.028544]
[1748218001759,0.24282589,108850.0,108840.0,0.001]
[1748218001964,0.33237145,108850.0,108840.0,0.001]
[1748218003356,0.23071284,108850.0,108840.0,0.00329677]
[1748218003911,0.25271284,108850.0,108840.0,0.00329677]
[1748218004683,0.26189971,108850.0,108840.0,0.10436254]
[1748218004836,0.26189971,108850.0,108840.0,0.00329677]
[1748218007193,0.26189971,108850.0,108840.0,0.001]
[1748218011270,0.35144527,108850.0,108840.0,0.001]
[1748218015518,0.35144527,108850.0,108840.0,0.028547]
[1748218015879,0.35144527,108850.0,108840.0,0.001]
[1748218022776,0.21474376,108840.0,108820.0,0.2960497]
[1748218022980,0.00918712,108840.0,108830.0,0.11945132]
[1748218023142,0.21131826,108840.0,108830.0,0.16989532]
[1748218023515,0.21131834,108840.0,108830.0,0.13091889]
[1748218023627,0.21131834,108840.0,108830.0,0.14929558]
[1748218023831,0.21131834,108840.0,108830.0,0.14010736]
[1748218024213,0.20213114,108840.0,108830.0,0.13091889]
[1748218024423,0.20613114,108840.0,108830.0,0.13091889]
[1748218024559,0.20613114,108840.0,108830.0,0.12862197]
[1748218024781,0.20513114,108840.0,108830.0,0.12862197]
[1748218025189,0.20713114,108840.0,108830.0,0.12862197]
[1748218025405,0.20713114,108840.0,108830.0,0.11943342]
[1748218025608,0.19794368,108840.0,108830.0,0.13781061]
[1748218026043,0.20713063,108840.0,108830.0,0.15848422]
[1748218026192,0.22550604,108840.0,108830.0,0.15848422]
[1748218026390,0.22550604,108840.0,108830.0,0.15848438]
[1748218026637,0.21631825,108840.0,108830.0,0.19958712]
[1748218026833,0.21631825,108840.0,108830.0,0.20877475]
[1748218027043,0.22550596,108840.0,108830.0,0.16869857]
[1748218027251,0.22550596,108840.0,108830.0,0.18707492]
[1748218027811,0.22550596,108840.0,108830.0,0.17788679]
[1748218028241,0.21631876,108840.0,108830.0,0.12862189]
[1748218028458,0.21631876,108840.0,108830.0,0.13781044]
[1748218028674,0.21631876,108840.0,108830.0,0.14699866]
[1748218028850,0.22550655,108840.0,108830.0,0.14699866]
[1748218029054,0.22550655,108840.0,108830.0,0.14699874]
[1748218029250,0.22550655,108840.0,108830.0,0.13781044]
[1748218029455,0.22550655,108840.0,108830.0,0.14699874]
[1748218030300,0.21631909,108840.0,108830.0,0.13781044]
[1748218030502,0.20713147,108840.0,108830.0,0.12862197]
[1748218030713,0.20713147,108840.0,108830.0,0.13781061]
[1748218031117,0.22733147,108840.0,108830.0,0.13781061]
[1748218031627,0.22733147,108840.0,108830.0,0.12862206]
[1748218032262,0.21814376,108840.0,108830.0,0.027547]
[1748218032491,0.24004376,108840.0,108830.0,0.027547]
[1748218033312,0.24863967,108840.0,108830.0,0.027547]
[1748218033544,0.33818523,108840.0,108830.0,0.027547]
[1748218033755,0.23706132,108830.0,108820.0,0.34]
[1748218033962,0.23706132,108830.0,108820.0,0.36755]
[1748218035114,0.24006132,108830.0,108820.0,0.36755]
[1748218036091,0.2492497,108830.0,108820.0,0.36755]
[1748218036307,0.21433791,108830.0,108820.0,0.48701256]
[1748218036496,0.01218788,108830.0,108820.0,0.49620161]
[1748218036697,0.03056406,108830.0,108820.0,0.51900161]
[1748218037417,0.01218788,108830.0,108820.0,0.51900161]
[1748218037619,0.003,108830.0,108820.0,0.53990161]
[1748218037851,0.01218788,108830.0,108820.0,0.53990161]
[1748218038042,0.02137601,108830.0,108820.0,0.53990161]
[1748218038248,0.01218788,108830.0,108820.0,0.53990161]
[1748218038367,0.03056397,108830.0,108820.0,0.53990161]
[1748218038567,0.02137584,108830.0,108820.0,0.53990161]
[1748218038788,0.03056406,108830.0,108820.0,0.53990161]
[1748218038997,0.02137584,108830.0,108820.0,0.53990161]
[1748218039204,0.03056406,108830.0,108820.0,0.53990161]
[1748218039410,0.003,108830.0,108820.0,0.53990161]
[1748218039613,0.01218788,108830.0,108820.0,0.53990161]
[1748218039813,0.003,108830.0,108820.0,0.53990161]
[1748218040125,0.01218796,108830.0,108820.0,0.53990161]
[1748218040292,0.02137609,108830.0,108820.0,0.53990161]
[1748218040876,0.03056439,108830.0,108820.0,0.51900161]
[1748218041501,0.22352621,108830.0,108820.0,0.47782358]
[1748218041680,0.21433808,108830.0,108820.0,0.47782358]
[1748218041881,0.24714978,108830.0,108820.0,0.02755]
[1748218042103,0.24714978,108830.0,108820.0,0.28462366]
[1748218042314,0.24714978,108830.0,108820.0,0.29381289]
[1748218042462,0.24714978,108830.0,108820.0,0.30300212]
[1748218042658,0.24714978,108830.0,108820.0,0.28462375]
[1748218042962,0.2379614,108830.0,108820.0,0.27543435]
[1748218043318,0.22877285,108830.0,108820.0,0.17435]
[1748218043532,0.22877285,108830.0,108820.0,0.02755]
[1748218043816,0.23387905,108820.0,108810.0,0.5878933]
[1748218043956,0.24306828,108820.0,108810.0,0.60627345]
[1748218044159,0.24306828,108820.0,108810.0,0.63382245]
[1748218044381,0.25225734,108820.0,108810.0,0.62463246]
[1748218044744,0.25225734,108820.0,108810.0,0.027549]
[1748218044947,0.22056609,108810.0,108800.0,0.13297037]
[1748218045174,0.22975574,108810.0,108800.0,0.27057979]
[1748218045388,0.05725954,108810.0,108800.0,0.27747287]
[1748218045589,0.25025641,108810.0,108800.0,0.61747287]
[1748218045919,0.24925641,108810.0,108800.0,0.60828229]
[1748218046530,0.2444872,108810.0,108800.0,0.344]
[1748218046746,0.25855167,108810.0,108800.0,0.59190285]
[1748218046956,0.25855133,108810.0,108800.0,0.61028443]
[1748218047162,0.25855133,108810.0,108800.0,0.60109377]
[1748218047438,0.25855133,108810.0,108800.0,0.61228443]
[1748218047585,0.26774166,108810.0,108800.0,0.61228443]
[1748218047800,0.26774166,108810.0,108800.0,0.60309377]
[1748218048000,0.26774166,108810.0,108800.0,0.61228452]
[1748218048530,0.25855133,108810.0,108800.0,0.62147518]
[1748218049027,0.26774107,108810.0,108800.0,0.62147518]
[1748218049345,0.2769314,108810.0,108800.0,0.62147535]
[1748218050367,0.25855083,108810.0,108800.0,0.63066593]
[1748218050695,0.26774107,108810.0,108800.0,0.346]
[1748218050850,0.25855133,108810.0,108800.0,0.346]
[1748218051321,0.25855133,108810.0,108800.0,0.344]
[1748218051907,0.25855133,108810.0,108800.0,0.35319117]
[1748218052471,0.25855133,108810.0,108800.0,0.36138226]
[1748218052671,0.25855133,108810.0,108800.0,0.344]
[1748218052873,0.25855133,108810.0,108800.0,0.35319117]
[1748218053104,0.25855133,108810.0,108800.0,0.35119117]
[1748218053301,0.26055133,108810.0,108800.0,0.36038226]
[1748218053720,0.25905133,108810.0,108800.0,0.002]
[1748218053919,0.34859689,108810.0,108800.0,0.002]
[1748218055229,0.49543689,108810.0,108800.0,0.002]
[1748218056089,0.49443689,108810.0,108800.0,0.002]
[1748218056297,0.49343689,108810.0,108800.0,0.002]
[1748218056504,0.51301029,108810.0,108800.0,0.003]
[1748218057897,0.50443689,108810.0,108800.0,0.003]
[1748218060409,0.24322386,108790.0,108780.0,0.352]
[1748218060618,0.33276942,108790.0,108780.0,0.352]
[1748218061607,0.32566948,108790.0,108780.0,0.352]
[1748218062720,0.32766948,108790.0,108780.0,0.352]
[1748218066664,0.32766948,108790.0,108780.0,0.012]
[1748218068298,0.47454948,108790.0,108780.0,0.00465655]
[1748218068730,0.23445001,108780.0,108770.0,0.34]
[1748218068846,0.32399557,108780.0,108770.0,0.34]
[1748218069344,0.33318818,108780.0,108770.0,0.34]
[1748218069747,0.32399557,108780.0,108770.0,0.34]
[1748218069996,0.32499557,108780.0,108770.0,0.34]
[1748218070194,0.32599557,108780.0,108770.0,0.34]
[1748218070634,0.20424195,108780.0,108770.0,0.34]
[1748218070845,0.23587613,108780.0,108770.0,0.34]
[1748218071036,0.24506899,108780.0,108770.0,0.34919371]
[1748218071252,0.23587613,108780.0,108770.0,0.44113082]
[1748218071457,0.24506899,108780.0,108770.0,0.44113082]
[1748218071779,0.24506899,108780.0,108770.0,0.34]
[1748218071986,0.24506899,108780.0,108770.0,0.34919371]
[1748218072474,0.24506899,108780.0,108770.0,0.34]
[1748218072811,0.24506899,108780.0,108770.0,0.48688]
[1748218073903,0.22668344,108780.0,108770.0,0.58801082]
[1748218074111,0.24506874,108780.0,108770.0,0.48688]
[1748218074251,0.2542616,108780.0,108770.0,0.49607371]
[1748218074452,0.2747616,108780.0,108770.0,0.49607371]
[1748218074715,0.2747616,108780.0,108770.0,0.48688]
[1748218075025,0.2747616,108780.0,108770.0,0.34]
[1748218075665,0.2542616,108780.0,108770.0,0.34]
[1748218075866,0.2542616,108780.0,108770.0,0.34919371]
[1748218076158,0.2765616,108780.0,108770.0,0.34919371]
[1748218076361,0.2765616,108780.0,108770.0,0.34]
[1748218076541,0.2765616,108780.0,108770.0,0.34919371]
[1748218076685,0.2765616,108780.0,108770.0,0.34]
[1748218076895,0.26736941,108780.0,108770.0,0.34]
[1748218077311,0.28766941,108780.0,108770.0,0.34]
[1748218078298,0.26736941,108780.0,108770.0,0.34]
[1748218078413,0.27847697,108780.0,108770.0,0.48688]
[1748218078620,0.25817697,108780.0,108770.0,0.49607371]
[1748218078823,0.25817697,108780.0,108770.0,0.48688]
[1748218079468,0.22668377,108780.0,108770.0,0.58801082]
[1748218079668,0.23587663,108780.0,108770.0,0.48688]
[1748218080058,0.22668377,108780.0,108770.0,0.58801082]
[1748218080396,0.23587646,108780.0,108770.0,0.48688]
[1748218080895,0.25677646,108780.0,108770.0,0.48688]
[1748218081494,0.23587655,108780.0,108770.0,0.59720444]
[1748218081696,0.002,108780.0,108770.0,0.65859092]
[1748218081889,0.002,108780.0,108770.0,0.74813648]
[1748218082583,0.002,108780.0,108770.0,0.76267733]
[1748218082769,0.002,108780.0,108770.0,0.77267733]
[1748218082973,0.002,108780.0,108770.0,0.80023033]
[1748218083612,9.165e-05,108790.0,108780.0,0.51664708]
[1748218083826,9.165e-05,108790.0,108780.0,0.76891264]
[1748218085034,0.00109165,108790.0,108780.0,0.76891264]
[1748218085419,0.00209165,108790.0,108780.0,0.76891264]
[1748218086176,9.165e-05,108790.0,108780.0,0.76891264]
[1748218086584,9.165e-05,108790.0,108780.0,0.77291264]
[1748218088508,9.165e-05,108790.0,108780.0,0.78291264]
[1748218088965,9.165e-05,108790.0,108780.0,0.52316874]
[1748218089174,9.165e-05,108790.0,108780.0,0.64267497]
[1748218089603,9.165e-05,108790.0,108780.0,0.64767497]
[1748218090543,9.165e-05,108790.0,108780.0,0.69767497]
[1748218091049,9.165e-05,108790.0,108780.0,0.71221582]
[1748218093254,9.165e-05,108790.0,108780.0,0.85893582]
[1748218094281,9.165e-05,108790.0,108780.0,0.54949582]
[1748218094514,9.165e-05,108790.0,108780.0,0.79893582]
[1748218095127,9.165e-05,108790.0,108780.0,0.41825179]
[1748218095330,0.00928299,108790.0,108780.0,0.194667]
[1748218095537,0.25350668,108790.0,108780.0,0.42375405]
[1748218095739,0.24431492,108790.0,108780.0,0.77294657]
[1748218095912,0.2535066,108790.0,108780.0,0.77294657]
[1748218096142,0.2535066,108790.0,108780.0,0.78213892]
[1748218096292,0.0604745,108790.0,108780.0,0.79133119]
[1748218096509,0.05128299,108790.0,108780.0,0.79133119]
[1748218096727,0.05128299,108790.0,108780.0,0.45431405]
[1748218096728,0.2535066,108790.0,108780.0,0.45431405]
[1748218096884,0.26269853,108790.0,108780.0,0.75456144]
[1748218097092,0.26269853,108790.0,108780.0,0.09592866]
[1748218097309,0.25350719,108790.0,108780.0,0.09592866]
[1748218097527,0.25350719,108790.0,108780.0,0.15084]
[1748218097754,0.26269921,108790.0,108780.0,0.58276866]
[1748218097961,0.26269921,108790.0,108780.0,0.60115413]
[1748218098178,0.06047442,108790.0,108780.0,0.61034665]
[1748218098411,0.26269853,108790.0,108780.0,0.60115413]
[1748218098872,0.26269853,108790.0,108780.0,0.61034674]
[1748218099084,0.26269853,108790.0,108780.0,0.6287317]
[1748218099287,0.25350727,108790.0,108780.0,0.49084]
[1748218099490,0.25350727,108790.0,108780.0,0.50922564]
[1748218099690,0.25350727,108790.0,108780.0,0.49084]
[1748218099897,0.25350727,108790.0,108780.0,0.59915396]
[1748218100235,0.25350727,108790.0,108780.0,0.59815396]
[1748218100480,0.2535066,108790.0,108780.0,0.60734631]
[1748218100687,0.2535066,108790.0,108780.0,0.59915396]
[1748218100886,0.26269853,108790.0,108780.0,0.59915396]
[1748218101319,0.26269853,108790.0,108780.0,0.6083464]
[1748218101528,0.2535066,108790.0,108780.0,0.6083464]
[1748218101727,0.26269837,108790.0,108780.0,0.61753875]
[1748218101903,0.25350652,108790.0,108780.0,0.61753875]
[1748218102065,0.26269837,108790.0,108780.0,0.61753875]
[1748218103501,0.25350652,108790.0,108780.0,0.61753875]
[1748218103702,0.05128291,108790.0,108780.0,0.62673102]
[1748218104319,0.06047433,108790.0,108780.0,0.62673102]
[1748218104524,0.06966601,108790.0,108780.0,0.6083464]
[1748218104736,0.25350643,108790.0,108780.0,0.6083464]
[1748218104941,0.25350634,108790.0,108780.0,0.61753875]
[1748218105287,0.25350634,108790.0,108780.0,0.60834657]
[1748218105489,0.26269886,108790.0,108780.0,0.48884]
[1748218105815,0.25350684,108790.0,108780.0,0.59915387]
[1748218106167,0.04209165,108790.0,108780.0,0.60834614]
[1748218106372,0.244315,108790.0,108780.0,0.59915387]
[1748218106600,0.24431483,108790.0,108780.0,0.60834622]
[1748218106785,0.25350642,108790.0,108780.0,0.60834622]
[1748218106980,0.05128299,108790.0,108780.0,0.61753849]
[1748218107179,0.05258299,108790.0,108780.0,0.61753849]
[1748218107522,0.05258299,108790.0,108780.0,0.47069849]
[1748218107811,0.23642341,108790.0,108780.0,0.61753849]
[1748218108020,0.245615,108790.0,108780.0,0.46150622]
[1748218108217,0.245615,108790.0,108780.0,0.45231396]
[1748218108552,0.23642341,108790.0,108780.0,0.6083864]
[1748218108755,0.245615,108790.0,108780.0,0.61757875]
[1748218109459,0.06177458,108790.0,108780.0,0.61757875]
[1748218109613,0.05258291,108790.0,108780.0,0.62677102]
[1748218109816,0.06177433,108790.0,108780.0,0.62677102]
[1748218111166,0.06177425,108790.0,108780.0,0.28677102]
[1748218112643,0.07096576,108790.0,108780.0,0.28677102]
[1748218113220,9.165e-05,108790.0,108780.0,0.37631658]
[1748218113426,9.165e-05,108790.0,108780.0,0.75991658]